[Event "Championnat du monde jeunes U10"]
[Date "2024.11.20"]
[White "Nguyen Truong An Khang"]
[Black "Tamiolakis, Grigorios"]
[WhiteElo "1836"]
[BlackElo "1591"]
[Round "6.29"]
[Result "1-0"]
[TimeControl "5400+30"]

1. d4 {[%clk 1:30:57]} 1... d5 {[%clk 1:30:54]} 2. c4 {[%clk 1:31:24]} 2... dxc4
{[%clk 1:31:19]} 3. e3 {[%clk 1:31:51]} 3... Nf6 {[%clk 1:31:40]} 4. Bxc4 {[%clk
1:32:03]} 4... e6 {[%clk 1:32:01]} 5. Nf3 {[%clk 1:32:29]} 5... a6 6. O-O {[%clk
1:32:52]} 6... b5 {[%clk 1:32:52]} 7. Be2 {[%clk 1:32:51]} 7... Bb7 {[%clk
1:33:14]} 8. Nbd2 {[%clk 1:32:57]} 8... Nbd7 {[%clk 1:32:32]} 9. a4 {[%clk
1:33:04]} 9... b4 {[%clk 1:32:54]} 10. Nc4 {[%clk 1:33:31]} 10... c5 {[%clk
1:32:43]} 11. Nfe5 {[%clk 1:22:43]} 11... Be7 {[%clk 1:19:29]} 12. b3 {[%clk
1:18:06]} 12... Qc7 {[%clk 1:09:10]} 13. Bb2 {[%clk 1:10:15]} 13... O-O {[%clk
0:59:13]} 14. Rc1 {[%clk 1:04:57]} 14... Rac8 {[%clk 0:57:54]} 15. Bf3 {[%clk
1:03:11]} 15... Bxf3 {[%clk 0:51:12]} 16. Qxf3 {[%clk 1:03:33]} 16... Nxe5
{[%clk 0:47:31]} 17. Nxe5 {[%clk 1:03:33]} 17... Nd7 {[%clk 0:46:46]} 18. Nd3
{[%clk 0:51:42]} 18... Qa5 {[%clk 0:37:41]} 19. d5 {[%clk 0:47:31]} 19... Bf6
{[%clk 0:27:29]} 20. dxe6 {[%clk 0:41:04]} 20... fxe6 {[%clk 0:27:04]} 21. Qg4
{[%clk 0:40:51]} 21... Qb6 {[%clk 0:22:04]} 22. Qc4 {[%clk 0:27:01]} 22... Bxb2
23. Nxb2 {[%clk 0:27:29]} 23... Ne5 {[%clk 0:19:16]} 24. Qe4 {[%clk 0:27:47]}
24... Nd7 {[%clk 0:15:49]} 25. Nc4 {[%clk 0:22:02]} 25... Qc6 {[%clk 0:14:51]}
26. Qxc6 Rxc6 {[%clk 0:15:12]} 27. e4 {[%clk 0:21:00]} 27... Nf6 {[%clk
0:13:32]} 28. f3 {[%clk 0:21:20]} 28... Rd8 {[%clk 0:13:44]} 29. Rfd1 Rxd1+
{[%clk 0:12:44]} 30. Rxd1 {[%clk 0:21:54]} 30... Kf8 {[%clk 0:12:27]} 31. Rd8+
{[%clk 0:21:41]} 31... Ke7 {[%clk 0:12:52]} 32. Ra8 {[%clk 0:22:00]} 32... Nd7
{[%clk 0:09:42]} 33. Kf2 {[%clk 0:20:00]} 33... Nf6 {[%clk 0:07:00]} 34. Ra7+
{[%clk 0:19:59]} 34... Nd7 {[%clk 0:05:38]} 35. Ke3 {[%clk 0:19:18]} 35... Kd8
{[%clk 0:05:14]} 36. a5 {[%clk 0:18:42]} 36... Ke7 {[%clk 0:02:49]} 37. Nb6
{[%clk 0:18:36]} 37... Rxb6 38. axb6 {[%clk 0:18:59]} 38... Kd6 {[%clk 0:02:11]}
39. Rxa6 {[%clk 0:18:41]} 39... Kc6 {[%clk 0:02:26]} 40. b7+ Kxb7 {[%clk
0:02:47]} 41. Rxe6 {[%clk 0:19:08]} 41... c4 {[%clk 0:02:44]} 42. Re7 {[%clk
0:18:45]} 42... Kc6 {[%clk 0:02:38]} 43. Rxd7 Kxd7 {[%clk 0:02:53]} 44. bxc4
{[%clk 0:19:28]} 44... Kd6 {[%clk 0:03:03]} 45. Kd4 {[%clk 0:19:26]} 45... b3
{[%clk 0:03:27]} 46. Kc3 {[%clk 0:19:53]} 46... b2 {[%clk 0:03:43]} 47. Kxb2
{[%clk 0:20:18]} 47... Kc5 {[%clk 0:04:12]} 48. Kc3 {[%clk 0:20:40]} 48... Kc6
{[%clk 0:04:38]} 49. Kd4 {[%clk 0:21:06]} 49... Kd6 {[%clk 0:05:05]} 50. e5+
{[%clk 0:21:34]} 50... Ke6 {[%clk 0:05:28]} 51. c5 {[%clk 0:22:00]} 51... Ke7
{[%clk 0:05:55]} 52. c6 {[%clk 0:22:21]} 52... Kd8 {[%clk 0:06:11]} 53. Kd5
{[%clk 0:22:46]} 53... Ke7 {[%clk 0:06:35]} 54. e6 {[%clk 0:23:12]} 54... Kd8
{[%clk 0:07:00]} 55. Kd6 {[%clk 0:23:38]} 55... Kc8 {[%clk 0:07:12]} 56. e7
{[%clk 0:24:03]} 56... Kb8 {[%clk 0:07:39]} 57. e8=Q+ {[%clk 0:24:21]} 57... Ka7
{[%clk 0:08:01]} 58. c7 {[%clk 0:24:40]} 58... Ka6 {[%clk 0:08:28]} 59. c8=Q+
{[%clk 0:25:01]} 59... Ka5 {[%clk 0:08:50]} 60. Qb7 {[%clk 0:25:23]} 60... g5
{[%clk 0:08:58]} 61. Qeb5# {[%clk 0:25:37]} 1-0

[Variant "Standard"]
[Site "Europe Echecs"]

[Event "Championnat du monde jeunes U10"]
[Date "2024.11.20"]
[White "Babeikin, Kiryl"]
[Black "Guirado Lara, Pablo"]
[WhiteElo "1721"]
[BlackElo "1832"]
[Round "6.30"]
[Result "1/2-1/2"]
[TimeControl "5400+30"]

1. e4 {[%clk 1:30:58]} 1... c5 {[%clk 1:30:53]} 2. Nf3 {[%clk 1:31:24]} 2... e6
{[%clk 1:31:19]} 3. d4 {[%clk 1:31:49]} 3... cxd4 {[%clk 1:31:44]} 4. Nxd4
{[%clk 1:32:16]} 4... Nf6 {[%clk 1:32:04]} 5. Nc3 {[%clk 1:32:40]} 5... Nc6
{[%clk 1:32:29]} 6. Nxc6 {[%clk 1:33:05]} 6... bxc6 {[%clk 1:32:54]} 7. e5
{[%clk 1:33:32]} 7... Nd5 {[%clk 1:33:18]} 8. Ne4 {[%clk 1:33:57]} 8... Bb7
{[%clk 1:33:31]} 9. c4 {[%clk 1:27:14]} 9... Nb6 {[%clk 1:31:17]} 10. c5 {[%clk
1:26:45]} 10... Nd5 {[%clk 1:31:33]} 11. Qd4 {[%clk 1:18:58]} 11... Be7 {[%clk
1:28:27]} 12. Bd3 {[%clk 1:02:47]} 12... Ba6 {[%clk 1:06:10]} 13. O-O {[%clk
0:50:58]} 13... Bxd3 {[%clk 1:06:32]} 14. Qxd3 {[%clk 0:51:26]} 14... f5 {[%clk
0:56:57]} 15. exf6 {[%clk 0:49:40]} 15... Nxf6 {[%clk 0:57:07]} 16. Nd6+ {[%clk
0:43:44]} 16... Bxd6 {[%clk 0:57:30]} 17. Qxd6 {[%clk 0:44:11]} 17... Qe7 {[%clk
0:50:42]} 18. Qxe7+ {[%clk 0:43:49]} 18... Kxe7 {[%clk 0:51:09]} 19. Bf4 {[%clk
0:44:06]} 19... Ne4 {[%clk 0:46:12]} 20. Rad1 {[%clk 0:42:47]} 20... Rhf8 {[%clk
0:41:53]} 21. Be5 {[%clk 0:43:07]} 21... Rf5 {[%clk 0:40:58]} 22. f4 {[%clk
0:43:28]} 22... h5 {[%clk 0:34:39]} 23. Rc1 {[%clk 0:38:11]} 23... g5 {[%clk
0:26:38]} 24. Rce1 {[%clk 0:37:12]} 24... Nd2 25. Bd6+ {[%clk 0:37:12]} 25...
Kf6 26. fxg5+ {[%clk 0:37:12]} 26... Kxg5 27. Rxf5+ {[%clk 0:37:12]} 27... Kxf5
28. Re5+ {[%clk 0:37:12]} 28... Kg6 29. b3 {[%clk 0:37:12]} 29... Nb1 30. Re3
{[%clk 0:37:12]} 30... Na3 31. Rd3 {[%clk 0:37:12]} 31... a6 32. Bg3 {[%clk
0:37:12]} 32... Ra7 33. Be1 {[%clk 0:37:12]} 33... a5 34. Rd2 {[%clk 0:37:12]}
34... Kf5 35. Bg3 {[%clk 0:37:12]} 35... Ke4 36. Kf2 {[%clk 0:37:12]} 36... a4
37. Bd6 {[%clk 0:37:12]} 37... axb3 38. axb3 {[%clk 0:37:12]} 38... Rb7 39. Re2+
{[%clk 0:37:12]} 39... Kd4 40. Re5 {[%clk 0:37:12]} 40... Rxb3 41. Rxh5 {[%clk
0:37:12]} 41... Nb5 42. Be7 {[%clk 0:37:12]} 42... Nc3 43. Bf6+ {[%clk 0:37:12]}
43... Kc4 44. Bxc3 {[%clk 0:37:12]} 44... Rxc3 45. h4 {[%clk 0:37:12]} 45... Kd4
46. Rh7 {[%clk 0:37:12]} 46... Rxc5 47. Rxd7+ {[%clk 0:37:12]} 47... Rd5 48. Re7
{[%clk 0:37:12]} 48... Ke5 49. Rf7 {[%clk 0:37:12]} 49... Ke4 50. Kg3 {[%clk
0:37:12]} 50... Rd8 51. h5 {[%clk 0:37:12]} 51... c5 52. Rc7 {[%clk 0:37:12]}
52... Kf5 53. Rxc5+ {[%clk 0:37:12]} 53... e5 54. Rc4 {[%clk 0:37:12]} 54... Kg5
55. Rc5 {[%clk 0:37:12]} 55... Kxh5 56. Rxe5+ {[%clk 0:37:12]} 56... Kg6 57. Kh4
{[%clk 0:37:12]} 57... Rh8+ 58. Kg4 {[%clk 0:37:12]} 58... Kf6 59. Ra5 {[%clk
0:37:12]} 59... Rg8+ 60. Kf3 {[%clk 0:37:12]} 60... Rb8 61. g4 {[%clk 0:37:12]}
61... Rb3+ 62. Kf4 {[%clk 0:37:12]} 62... Rb4+ 63. Kg3 {[%clk 0:37:12]} 63...
Rb1 64. Ra6+ {[%clk 0:37:12]} 64... Kg5 65. Ra5+ {[%clk 0:37:12]} 65... Kg6 66.
Ra6+ {[%clk 0:37:12]} 1/2-1/2

[Variant "Standard"]
[Site "Europe Echecs"]

[Event "Championnat du monde jeunes U10"]
[Date "2024.11.20"]
[White "Golya, David"]
[Black "Ramesan, Raunak Amit"]
[WhiteElo "1672"]
[BlackElo "1802"]
[Round "6.31"]
[Result "0-1"]
[TimeControl "5400+30"]

1. e4 {[%clk 1:30:57]} 1... e5 {[%clk 1:30:54]} 2. Nf3 {[%clk 1:31:25]} 2... Nc6
{[%clk 1:31:16]} 3. Bc4 {[%clk 1:31:51]} 3... Bc5 {[%clk 1:31:35]} 4. O-O {[%clk
1:32:17]} 4... Nf6 {[%clk 1:31:58]} 5. d3 {[%clk 1:32:45]} 5... d6 {[%clk
1:32:11]} 6. h3 {[%clk 1:33:06]} 6... a6 {[%clk 1:30:13]} 7. c3 {[%clk 1:32:42]}
7... Ba7 {[%clk 1:24:30]} 8. Bb3 {[%clk 1:30:18]} 8... h6 {[%clk 1:24:40]} 9.
Nbd2 {[%clk 1:21:56]} 9... g5 {[%clk 1:24:08]} 10. Nh2 {[%clk 1:13:16]} 10...
Qe7 {[%clk 1:19:23]} 11. g4 {[%clk 0:59:49]} 11... Bd7 {[%clk 1:11:41]} 12. Nc4
{[%clk 0:57:13]} 12... O-O-O {[%clk 1:10:08]} 13. Ne3 {[%clk 0:50:45]} 13... h5
{[%clk 1:04:08]} 14. Nf5 {[%clk 0:49:19]} 14... Bxf5 {[%clk 1:04:03]} 15. exf5
{[%clk 0:48:13]} 15... hxg4 {[%clk 1:01:51]} 16. hxg4 {[%clk 0:46:27]} 16... Qf8
{[%clk 0:53:42]} 17. Bxg5 {[%clk 0:40:28]} 17... Qg7 {[%clk 0:52:57]} 18. Nf3
{[%clk 0:34:10]} 18... Nxg4 {[%clk 0:49:47]} 19. Bxf7 {[%clk 0:21:37]} 19... Nh2
{[%clk 0:46:58]} 20. Be6+ {[%clk 0:20:40]} 20... Kb8 {[%clk 0:47:17]} 21. Nxh2
{[%clk 0:18:25]} 21... Qh7 {[%clk 0:47:10]} 22. Kg2 {[%clk 0:13:47]} 22... Qh3+
{[%clk 0:47:33]} 0-1

[Variant "Standard"]
[Site "Europe Echecs"]

[Event "Championnat du monde jeunes U10"]
[Date "2024.11.20"]
[White "Popov, Aleksandr And"]
[Black "Cao, Frank Zhongtian"]
[WhiteElo "1651"]
[BlackElo "1793"]
[Round "6.32"]
[Result "1/2-1/2"]
[TimeControl "5400+30"]

1. e4 {[%clk 1:30:59]} 1... c5 {[%clk 1:30:58]} 2. Nf3 {[%clk 1:31:19]} 2... d6
{[%clk 1:31:25]} 3. d4 {[%clk 1:31:43]} 3... cxd4 {[%clk 1:31:52]} 4. Nxd4
{[%clk 1:32:06]} 4... Nf6 {[%clk 1:32:18]} 5. Nc3 {[%clk 1:32:29]} 5... a6
{[%clk 1:32:45]} 6. a3 {[%clk 1:32:52]} 6... e5 {[%clk 1:29:03]} 7. Nf5 {[%clk
1:33:04]} 7... d5 {[%clk 1:26:14]} 8. Bg5 {[%clk 1:33:26]} 8... d4 {[%clk
1:23:15]} 9. Bxf6 {[%clk 1:33:47]} 9... gxf6 {[%clk 1:12:31]} 10. Na2 {[%clk
1:34:06]} 10... Bxf5 {[%clk 1:12:36]} 11. exf5 {[%clk 1:34:30]} 11... Nc6 {[%clk
1:05:32]} 12. Be2 {[%clk 1:25:46]} 12... Bd6 {[%clk 0:57:07]} 13. Bf3 {[%clk
1:18:51]} 13... Qd7 {[%clk 0:51:42]} 14. Qd3 {[%clk 1:12:43]} 14... Be7 {[%clk
0:36:45]} 15. O-O {[%clk 1:06:05]} 15... Rc8 {[%clk 0:32:15]} 16. c3 Rd8 {[%clk
0:24:06]} 17. Rad1 {[%clk 0:53:14]} 17... Qc8 {[%clk 0:21:22]} 18. Qe4 {[%clk
0:48:47]} 18... dxc3 {[%clk 0:18:22]} 19. Rxd8+ {[%clk 0:47:45]} 19... Bxd8
{[%clk 0:16:12]} 20. Nxc3 {[%clk 0:46:59]} 20... Nd4 {[%clk 0:12:35]} 21. Qxb7
{[%clk 0:46:21]} 21... Qxf5 22. Bc6+ {[%clk 0:46:21]} 22... Nxc6 23. Qxc6+
{[%clk 0:46:21]} 23... Qd7 24. Qxa6 {[%clk 0:46:21]} 24... O-O 25. Rd1 {[%clk
0:46:21]} 25... Qf5 26. Qd3 {[%clk 0:46:21]} 26... Qe6 27. h3 {[%clk 0:46:21]}
27... Kh8 28. b4 {[%clk 0:46:21]} 28... Rg8 29. Qd5 {[%clk 0:46:21]} 29... Qxh3
30. Rd3 {[%clk 0:46:21]} 30... Rxg2+ 31. Qxg2 {[%clk 0:46:21]} 31... Qxd3 32.
Qd5 {[%clk 0:46:21]} 32... Qxc3 1/2-1/2

[Variant "Standard"]
[Site "Europe Echecs"]

[Event "Championnat du monde jeunes U10"]
[Date "2024.11.20"]
[White "Vedrickas, Vytis"]
[Black "Neuschild, Marius"]
[WhiteElo "1642"]
[BlackElo "1786"]
[Round "6.33"]
[Result "1-0"]
[TimeControl "5400+30"]

1. e4 {[%clk 1:30:46]} 1... c5 {[%clk 1:30:59]} 2. Nf3 {[%clk 1:30:59]} 2... d6
{[%clk 1:31:25]} 3. d4 {[%clk 1:31:05]} 3... cxd4 {[%clk 1:31:53]} 4. Nxd4
{[%clk 1:31:18]} 4... Nf6 {[%clk 1:32:22]} 5. Nc3 {[%clk 1:31:33]} 5... a6
{[%clk 1:32:51]} 6. Nb3 {[%clk 1:31:42]} 6... Nbd7 {[%clk 1:20:22]} 7. a4 {[%clk
1:19:24]} 7... b6 {[%clk 1:11:20]} 8. f4 {[%clk 1:06:26]} 8... Bb7 {[%clk
1:06:22]} 9. Bd3 {[%clk 1:06:03]} 9... e5 {[%clk 1:04:43]} 10. O-O {[%clk
1:05:09]} 10... Be7 {[%clk 1:04:08]} 11. Kh1 {[%clk 1:03:47]} 11... O-O {[%clk
1:04:09]} 12. Qf3 {[%clk 0:57:51]} 12... Re8 {[%clk 1:01:11]} 13. f5 {[%clk
0:55:27]} 13... Bf8 {[%clk 0:53:41]} 14. Bg5 {[%clk 0:53:43]} 14... Qc7 {[%clk
0:50:05]} 15. Rad1 {[%clk 0:50:54]} 15... Rac8 {[%clk 0:43:39]} 16. Nd5 {[%clk
0:43:01]} 16... Bxd5 {[%clk 0:37:19]} 17. exd5 {[%clk 0:41:34]} 17... e4 {[%clk
0:36:23]} 18. Bxe4 {[%clk 0:40:43]} 18... Nxe4 {[%clk 0:36:00]} 19. Bh4 {[%clk
0:39:29]} 19... Nec5 {[%clk 0:32:54]} 20. Nd4 {[%clk 0:38:56]} 20... Ne5 {[%clk
0:32:29]} 21. Qg3 {[%clk 0:38:21]} 21... Kh8 {[%clk 0:23:51]} 22. f6 {[%clk
0:35:43]} 22... g6 {[%clk 0:23:42]} 23. Rde1 {[%clk 0:32:35]} 23... Nc4 {[%clk
0:19:44]} 24. Nc6 {[%clk 0:30:14]} 24... Ne5 {[%clk 0:09:40]} 25. Ne7 {[%clk
0:29:31]} 25... Rcd8 {[%clk 0:09:18]} 26. Bg5 {[%clk 0:29:13]} 26... Qd7 {[%clk
0:08:03]} 27. Rf4 {[%clk 0:29:13]} 27... Bxe7 {[%clk 0:02:56]} 28. fxe7 {[%clk
0:29:11]} 28... Rxe7 {[%clk 0:03:01]} 29. Bf6+ {[%clk 0:28:45]} 29... Kg8 {[%clk
0:03:25]} 30. Qh4 {[%clk 0:28:29]} 30... h5 {[%clk 0:02:51]} 31. Bxe7 {[%clk
0:28:23]} 31... Re8 {[%clk 0:02:42]} 32. Bf6 {[%clk 0:28:14]} 32... Ng4 {[%clk
0:00:54]} 33. Rxe8+ {[%clk 0:27:35]} 33... Qxe8 {[%clk 0:01:21]} 34. Rxg4 {[%clk
0:27:46]} 34... Qe2 {[%clk 0:01:13]} 35. h3 {[%clk 0:27:32]} 35... Qf1+ {[%clk
0:01:17]} 36. Kh2 {[%clk 0:27:49]} 36... Nd7 {[%clk 0:01:06]} 37. Bc3 {[%clk
0:27:39]} 37... hxg4 {[%clk 0:00:42]} 38. Qh8# {[%clk 0:28:02]} 1-0

[Variant "Standard"]
[Site "Europe Echecs"]

[Event "Championnat du monde jeunes U10"]
[Date "2024.11.20"]
[White "Otetileu, Amanbek"]
[Black "Liu, Liam"]
[WhiteElo "1632"]
[BlackElo "1783"]
[Round "6.34"]
[Result "1/2-1/2"]
[TimeControl "5400+30"]

1. e4 {[%clk 1:30:55]} 1... c6 {[%clk 1:30:48]} 2. d4 {[%clk 1:31:19]} 2... d5
{[%clk 1:31:07]} 3. exd5 {[%clk 1:31:31]} 3... cxd5 {[%clk 1:31:23]} 4. Bd3
{[%clk 1:29:30]} 4... Nc6 {[%clk 1:31:36]} 5. Nf3 {[%clk 1:27:29]} 5... Nf6
{[%clk 1:31:08]} 6. O-O {[%clk 1:26:20]} 6... Bg4 {[%clk 1:31:19]} 7. c3 {[%clk
1:26:29]} 7... e6 {[%clk 1:31:35]} 8. h3 {[%clk 1:25:37]} 8... Bh5 {[%clk
1:31:44]} 9. Bf4 {[%clk 1:25:31]} 9... Bd6 {[%clk 1:31:53]} 10. Bxd6 {[%clk
1:22:30]} 10... Qxd6 {[%clk 1:31:37]} 11. Nbd2 {[%clk 1:22:14]} 11... O-O {[%clk
1:31:38]} 12. Qb3 {[%clk 1:21:36]} 12... Rfc8 {[%clk 1:27:58]} 13. Qxb7 {[%clk
1:20:05]} 13... Rcb8 {[%clk 1:27:10]} 14. Qa6 {[%clk 1:20:26]} 14... Rb6 {[%clk
1:27:03]} 15. Qa3 {[%clk 1:20:34]} 15... Qxa3 {[%clk 1:27:22]} 16. bxa3 {[%clk
1:20:59]} 16... Bxf3 {[%clk 1:26:26]} 17. Nxf3 {[%clk 1:21:01]} 17... Rc8 {[%clk
1:25:52]} 18. Rab1 {[%clk 1:20:20]} 18... Na5 {[%clk 1:19:39]} 19. Rxb6 {[%clk
1:20:08]} 19... axb6 {[%clk 1:19:55]} 20. Rc1 {[%clk 1:20:19]} 20... Ne4 {[%clk
1:12:18]} 21. Bxe4 {[%clk 1:20:29]} 21... dxe4 {[%clk 1:09:46]} 22. Ng5 {[%clk
1:20:37]} 22... f5 {[%clk 1:08:28]} 23. Nxe6 {[%clk 1:20:45]} 23... Nc4 {[%clk
1:08:37]} 24. a4 Ra8 {[%clk 1:07:29]} 25. Rb1 {[%clk 1:17:47]} 25... Rxa4 {[%clk
1:07:05]} 26. Rb4 {[%clk 1:17:44]} 26... Rxb4 {[%clk 1:07:24]} 27. cxb4 {[%clk
1:18:13]} 27... Kf7 {[%clk 1:07:37]} 28. Nc7 {[%clk 1:17:10]} 28... e3 {[%clk
1:03:00]} 29. fxe3 {[%clk 1:16:40]} 29... Nxe3 {[%clk 1:02:33]} 30. a4 {[%clk
1:14:52]} 30... Ke7 {[%clk 1:00:42]} 31. Kf2 {[%clk 1:12:46]} 31... Nc4 {[%clk
0:57:14]} 32. Nd5+ {[%clk 1:11:17]} 32... Kd7 {[%clk 0:52:17]} 33. Ne3 {[%clk
1:10:27]} 33... Nd6 {[%clk 0:52:08]} 34. Ke2 {[%clk 1:10:43]} 34... Ne4 {[%clk
0:51:23]} 35. Nxf5 {[%clk 1:08:27]} 35... g6 {[%clk 0:51:38]} 36. Ne3 {[%clk
1:08:54]} 36... Nc3+ {[%clk 0:51:50]} 37. Kd3 {[%clk 1:09:19]} 37... Nxa4 {[%clk
0:52:14]} 38. b5 {[%clk 1:09:28]} 38... Kd6 {[%clk 0:50:31]} 39. Kc4 {[%clk
1:09:41]} 39... h5 {[%clk 0:50:27]} 40. Kb3 {[%clk 1:08:07]} 40... Nc5+ {[%clk
0:50:51]} 41. dxc5+ {[%clk 1:08:33]} 41... Kxc5 {[%clk 0:51:16]} 42. h4 {[%clk
1:08:49]} 42... Kxb5 {[%clk 0:51:04]} 43. Nd5 {[%clk 1:07:05]} 43... Kc5 {[%clk
0:51:28]} 44. Nf4 {[%clk 1:07:30]} 44... Kd4 {[%clk 0:51:55]} 45. Nxg6 {[%clk
1:07:56]} 45... Ke4 {[%clk 0:52:22]} 46. Kc2 {[%clk 1:01:22]} 46... Kf5 {[%clk
0:52:06]} 47. Ne7+ {[%clk 1:00:43]} 47... Kg4 {[%clk 0:52:29]} 48. Kd2 {[%clk
0:59:03]} 48... Kxh4 {[%clk 0:52:45]} 49. Ke2 {[%clk 0:59:13]} 49... Kg3 {[%clk
0:53:07]} 50. Kf1 {[%clk 0:59:37]} 50... h4 {[%clk 0:53:15]} 51. Nf5+ {[%clk
1:00:00]} 51... Kg4 {[%clk 0:53:42]} 52. Ne3+ {[%clk 1:00:23]} 52... Kg3 {[%clk
0:54:06]} 53. Kg1 {[%clk 0:59:58]} 53... b5 {[%clk 0:47:52]} 54. Nf1+ {[%clk
0:59:01]} 54... Kf4 {[%clk 0:47:17]} 55. Kh2 {[%clk 0:59:06]} 55... b4 {[%clk
0:47:42]} 56. Kh3 {[%clk 0:58:58]} 56... Kg5 {[%clk 0:48:08]} 57. Nd2 {[%clk
0:59:10]} 57... Kh5 {[%clk 0:48:22]} 58. Nb3 {[%clk 0:58:33]} 58... Kg5 {[%clk
0:48:46]} 59. Nd4 {[%clk 0:54:58]} 59... Kh5 {[%clk 0:49:07]} 60. Nb3 {[%clk
0:55:03]} 60... Kg5 {[%clk 0:49:28]} 61. Nc1 {[%clk 0:55:11]} 61... Kh5 {[%clk
0:49:42]} 62. Nb3 {[%clk 0:55:09]} 1/2-1/2

[Variant "Standard"]
[Site "Europe Echecs"]

[Event "Championnat du monde jeunes U10"]
[Date "2024.11.20"]
[White "Annapureddy, Rheyansh Reddy"]
[Black "Makhsatuly, Rakhim"]
[WhiteElo "2122"]
[BlackElo "1683"]
[Round "6.35"]
[Result "1-0"]
[TimeControl "5400+30"]

1. e4 {[%clk 1:30:23]} 1... c5 {[%clk 1:30:59]} 2. Nf3 {[%clk 1:30:48]} 2... Nc6
{[%clk 1:31:25]} 3. d4 {[%clk 1:31:12]} 3... cxd4 {[%clk 1:31:54]} 4. Nxd4
{[%clk 1:31:34]} 4... Nf6 {[%clk 1:32:19]} 5. Nc3 {[%clk 1:31:57]} 5... d6
{[%clk 1:32:47]} 6. Bg5 {[%clk 1:31:56]} 6... Bd7 {[%clk 1:33:10]} 7. Qd2 {[%clk
1:31:13]} 7... a6 {[%clk 1:33:25]} 8. O-O-O {[%clk 1:31:20]} 8... e6 {[%clk
1:33:02]} 9. f4 {[%clk 1:30:01]} 9... h6 {[%clk 1:33:06]} 10. Bxf6 {[%clk
1:29:01]} 10... Qxf6 {[%clk 1:32:10]} 11. Nf3 {[%clk 1:27:24]} 11... Qd8 {[%clk
1:30:40]} 12. g4 {[%clk 1:25:01]} 12... Be7 {[%clk 1:29:04]} 13. Kb1 {[%clk
1:22:55]} 13... Qc7 {[%clk 1:24:50]} 14. f5 {[%clk 1:22:13]} 14... O-O-O {[%clk
1:18:49]} 15. Be2 {[%clk 1:19:40]} 15... Kb8 {[%clk 1:08:30]} 16. h4 {[%clk
1:17:33]} 16... Bc8 {[%clk 1:04:54]} 17. Qe3 {[%clk 1:15:52]} 17... Bf6 {[%clk
1:00:21]} 18. Bc4 {[%clk 1:05:54]} 18... Na5 {[%clk 0:42:24]} 19. Bb3 {[%clk
1:01:13]} 19... Nxb3 {[%clk 0:41:55]} 20. axb3 {[%clk 1:01:10]} 20... Rhe8
{[%clk 0:36:56]} 21. Qd3 {[%clk 1:00:18]} 21... b5 {[%clk 0:34:35]} 22. g5
{[%clk 0:58:18]} 22... Bxc3 {[%clk 0:33:10]} 23. bxc3 {[%clk 0:58:35]} 23... d5
{[%clk 0:30:59]} 24. e5 {[%clk 0:55:29]} 24... exf5 {[%clk 0:27:50]} 25. gxh6
{[%clk 0:55:05]} 25... gxh6 {[%clk 0:28:09]} 26. Qd4 {[%clk 0:52:44]} 26... Bb7
{[%clk 0:26:34]} 27. Rhe1 {[%clk 0:52:08]} 27... Re6 {[%clk 0:24:59]} 28. h5
{[%clk 0:49:32]} 28... Qc6 {[%clk 0:22:34]} 29. Kb2 {[%clk 0:44:57]} 29... Rc8
{[%clk 0:20:53]} 30. Re3 {[%clk 0:38:42]} 30... Re7 {[%clk 0:14:52]} 31. Nh4
{[%clk 0:37:40]} 31... Qe6 {[%clk 0:14:39]} 32. Ng2 {[%clk 0:36:38]} 32... Qd7
{[%clk 0:13:25]} 33. Nf4 {[%clk 0:35:27]} 33... Rce8 {[%clk 0:13:11]} 34. Nd3
{[%clk 0:33:18]} 34... Qc7 {[%clk 0:12:31]} 35. Rde1 {[%clk 0:31:22]} 35... Rg8
{[%clk 0:12:03]} 36. e6 {[%clk 0:30:28]} 36... f4 {[%clk 0:06:51]} 37. exf7
{[%clk 0:29:41]} 37... Rxf7 {[%clk 0:06:33]} 38. Re8+ {[%clk 0:29:56]} 38...
Rxe8 {[%clk 0:06:55]} 39. Rxe8+ {[%clk 0:30:20]} 39... Bc8 {[%clk 0:07:08]} 40.
Ne5 {[%clk 0:27:54]} 40... Rf5 {[%clk 0:03:13]} 41. Re7 {[%clk 0:27:58]} 1-0

[Variant "Standard"]
[Site "Europe Echecs"]